fUST/lending_fUST_20240611
["ID","MTS","AMOUNT","RATE_DAILY","PERIOD"]
[329021114,1718064647782,-153.0,0.0002011,2]
[329021116,1718064647792,-205.3053491,0.0002011,2]
[329021118,1718064647806,-153.0,0.0002011,2]
[329021120,1718064647816,-292.4733043,0.0002011,2]
[329021122,1718064647827,-153.0,0.0002011,2]
[329021124,1718064647837,-205.3053491,0.0002011,2]
[329021126,1718064647848,-153.0,0.0002011,2]
[329021128,1718064647859,-153.0,0.0002011,2]
[329021130,1718064647870,-153.0,0.0002011,2]
[329021132,1718064647880,-205.3053491,0.0002011,2]
[329021134,1718064647890,-292.4733043,0.0002011,2]
[329021136,1718064647900,-153.0,0.0002011,2]
[329021138,1718064647912,-153.0,0.0002011,2]
[329021140,1718064647922,-292.4733043,0.0002011,2]
[329021142,1718064647933,-153.0,0.0002011,2]
[329021144,1718064647943,-205.3053491,0.0002011,2]
[329021146,1718064647953,-292.4733043,0.0002011,2]
[329021147,1718064647964,-205.3053491,0.0002011,2]
[329021149,1718064647974,-153.0,0.0002011,2]
[329021151,1718064647985,-292.4733043,0.0002011,2]
[329021153,1718064647996,-205.3053491,0.0002011,2]
[329021155,1718064648007,-153.0,0.0002011,2]
[329021158,1718064648018,-205.3053491,0.0002011,2]
[329021159,1718064648029,-292.4733043,0.0002011,2]
[329021161,1718064648040,-153.0,0.0002011,2]
[329021163,1718064648050,-292.4733043,0.0002011,2]
[329021165,1718064648061,-153.0,0.0002011,2]
[329021167,1718064648072,-205.3053491,0.0002011,2]
[329021169,1718064648082,-635.5405478,0.0002011,2]
[329021171,1718064648093,-151.0,0.0002011,2]
[329021173,1718064648104,-500.0,0.00020136,2]
[329021175,1718064648115,-153.0,0.00020137,2]
[329021183,1718064648220,-153.0,0.00020137,2]
[329021185,1718064648232,-205.3053491,0.00020137,2]
[329021187,1718064648242,-306.0,0.00020137,2]
[329021189,1718064648254,-260.6221709,0.00020137,2]
[329021190,1718064648265,-153.0,0.00020137,2]
[329021192,1718064648276,-153.0,0.00020137,2]
[329021194,1718064648287,-210.9973526,0.00020137,2]
[329021195,1718064648297,-220.3307948,0.00020137,2]
[329021198,1718064648312,-205.0966958,0.00020137,2]
[329021199,1718064648323,-153.0,0.00020137,2]
[329021201,1718064648334,-240.0263,0.00020172,2]
[329021203,1718064648344,-164.63552504,0.00020272,2]
[329021205,1718064648355,-151.0,0.00020273,2]
[329021206,1718064648366,-511.35,0.00020273,2]
[329021208,1718064648377,-151.0,0.00020273,2]
[329021210,1718064648388,-500.0,0.00020273,2]
[329021212,1718064648399,-500.0,0.00020273,2]
[329021213,1718064648411,-500.0,0.00020273,2]
[329021215,1718064648424,-500.0,0.00020273,2]
[329021217,1718064648438,-500.0,0.00020273,2]
[329021219,1718064648449,-546.88,0.00020273,2]
[329021221,1718064648459,-500.0,0.00020273,2]
[329021223,1718064648472,-500.0,0.00020273,2]
[329021225,1718064648483,-500.0,0.00020273,2]
[329021226,1718064648493,-500.0,0.00020273,2]
[329021228,1718064648504,-657.29,0.00020273,2]
[329021230,1718064648515,-524.39377564,0.00020273,2]
[329021231,1718064648525,-151.0,0.00020273,2]
[329021233,1718064648536,-602.11,0.00020273,2]
[329021235,1718064648547,-500.0,0.00020273,2]
[329021237,1718064648560,-500.0,0.00020273,2]
[329021239,1718064648576,-500.0,0.00020273,2]
[329021241,1718064648588,-670.38,0.00020273,2]
[329021243,1718064648598,-500.0,0.00020273,2]
[329021244,1718064648609,-1995.41,0.00020273,2]
[329021246,1718064648625,-500.0,0.00020273,2]
[329021248,1718064648636,-778.56,0.00020273,2]
[329021250,1718064648650,-3534.03,0.00020273,2]
[329021252,1718064648663,-500.0,0.00020273,2]
[329021253,1718064648674,-1067.36,0.00020273,2]
[329021255,1718064648685,-633.32,0.00020273,2]
[329021257,1718064648696,-768.11,0.00020273,2]
[329021259,1718064648709,-505.46,0.00020273,2]
[329021261,1718064648720,-3086.66,0.00020273,2]
[329021263,1718064648731,-500.0,0.00020273,2]
[329021265,1718064648742,-1891.61,0.00020273,2]
[329021266,1718064648752,-2429.34,0.00020273,2]
[329021268,1718064648763,-500.0,0.00020273,2]
[329021270,1718064648773,-500.0,0.00020273,2]
[329021272,1718064648784,-574.19,0.00020273,2]
[329021273,1718064648794,-1529.76,0.00020273,2]
[329021275,1718064648806,-500.0,0.00020273,2]
[329021277,1718064648818,-500.0,0.00020273,2]
[329021279,1718064648829,-500.0,0.00020273,2]
[329021281,1718064648840,-1532.31,0.00020273,2]
[329021282,1718064648850,-1477.72857739,0.00020273,2]
[329021292,1718064648961,-2897.76142261,0.00020273,2]
[329021293,1718064648972,-258.2,0.00020288,3]
[329021295,1718064648983,-153.0,0.0002036,2]
[329021297,1718064648995,-822.63208453,0.00020491,2]
[329021299,1718064649006,-500.0,0.00020546,2]
[329021301,1718064649017,-500.0,0.00020546,2]
[329021303,1718064649028,-151.0,0.00020547,2]
[329021304,1718064649039,-511.35,0.00020547,2]
[329021306,1718064649051,-151.0,0.00020547,2]
[329021308,1718064649061,-500.0,0.00020547,2]
[329021310,1718064649072,-149.31157737,0.00020547,2]
[329021330,1718064649314,-403.89595811,0.00019178,2]
[329021349,1718064649469,-118.14142641,0.00019178,2]
[329021352,1718064649482,-500.0,0.00019178,2]
[329021355,1718064649492,-500.0,0.00019178,2]
[329021358,1718064649503,-500.0,0.00019178,2]
[329021362,1718064649515,-500.0,0.00019178,2]
[329021365,1718064649527,-500.0,0.00019452,2]
[329021367,1718064649537,-350.68842263,0.00020547,2]
[329021370,1718064649548,-500.0,0.00020547,2]
[329021372,1718064649559,-250.45,0.00020547,2]
[329021376,1718064649576,-500.0,0.00020547,2]
[329021379,1718064649586,-500.0,0.00020547,2]
[329021381,1718064649596,-657.29,0.00020547,2]
[329021384,1718064649606,-332.93429418,0.00020547,2]
[329021386,1718064649619,-151.0,0.00020547,2]
[329021389,1718064649630,-670.38,0.00020547,2]
[329021390,1718064649640,-669.72635264,0.00020547,2]
[329026150,1718065833472,-325.521519,0.00016057,2]
[329026152,1718065833483,-108.9078747,0.00016281,2]
[329026154,1718065833497,-280.1045724,0.00016281,2]
[329026156,1718065833509,-250.0,0.00016339,2]
[329026159,1718065833520,-2113.8300801,0.00017032,2]
[329026160,1718065833530,-174.8980671,0.00017049,2]
[329026163,1718065833542,-1155.63089272,0.00017049,2]
[329026165,1718065833553,-155.63882798,0.00017049,2]
[329026167,1718065833565,-300.0,0.0001705,2]
[329026169,1718065833576,-300.0,0.0001705,2]
[329026170,1718065833587,-24900.0,0.00017051,2]
[329026174,1718065833598,-2054.1101477,0.00017103,2]
[329026176,1718065833609,-10488.5511856,0.00017898,2]
[329026179,1718065833620,-1058.866801,0.00018,2]
[329026182,1718065833632,-164.63552504,0.00018105,2]
[329026183,1718065833644,-1077.53903967,0.00018105,2]
[329026185,1718065833655,-659.44510114,0.00018105,2]
[329026188,1718065833668,-5216.04187033,0.00018105,2]
[329026189,1718065833679,-285.73167299,0.00018105,2]
[329026191,1718065833690,-1354.89851007,0.00018106,2]
[329026194,1718065833701,-232.81256118,0.00018106,2]
[329026196,1718065833713,-339.0,0.00018622,2]
[329026198,1718065833726,-420.0,0.00018755,2]
[329026199,1718065833737,-375.14882561,0.000189,2]
[329026202,1718065833748,-814.53652745,0.00019078,2]
[329026204,1718065833760,-2242.02928416,0.00019178,15]
[329026205,1718065833770,-500.0,0.00019178,2]
[329026208,1718065833781,-179.84928448,0.00019178,2]
[329026209,1718065833792,-165.0,0.00019178,2]
[329026211,1718065833803,-500.0,0.00019178,2]
[329026214,1718065833813,-500.0,0.00019178,2]
[329026215,1718065833824,-500.0,0.00019178,2]
[329026218,1718065833835,-409.38149924,0.00019178,2]
[329026220,1718065833845,-500.0,0.00019178,2]
[329026221,1718065833856,-502.95088566,0.00019178,2]
[329026224,1718065833867,-500.0,0.00019178,2]
[329026225,1718065833877,-500.0,0.00019178,2]
[329026227,1718065833887,-500.0,0.00019178,2]
[329026229,1718065833898,-500.0,0.00019178,2]
[329026231,1718065833909,-500.0,0.00019178,2]
[329026234,1718065833920,-500.0,0.00019178,2]
[329026235,1718065833931,-500.0,0.00019178,2]
[329026238,1718065833942,-500.0,0.00019178,2]
[329026240,1718065833952,-500.0,0.00019178,2]
[329026242,1718065833963,-214.00691055,0.00019178,2]
[329026244,1718065833978,-285.99308945,0.00019178,2]
[329026246,1718065833988,-500.0,0.00019178,2]
[329026248,1718065834000,-500.0,0.00019178,2]
[329026250,1718065834010,-500.0,0.00019178,2]
[329026252,1718065834024,-500.0,0.00019178,2]
[329026254,1718065834035,-500.0,0.00019178,2]
[329026256,1718065834049,-500.0,0.00019178,2]
[329026258,1718065834061,-500.0,0.00019178,2]
[329026260,1718065834073,-500.0,0.00019178,2]
[329026262,1718065834084,-500.0,0.00019178,2]
[329026264,1718065834095,-496.04016657,0.00019178,2]
[329026266,1718065834106,-500.0,0.00019178,2]
[329026268,1718065834119,-500.0,0.00019178,2]
[329026270,1718065834131,-500.0,0.00019178,2]
[329026272,1718065834141,-500.0,0.00019178,2]
[329026274,1718065834151,-500.0,0.00019178,2]
[329026276,1718065834165,-234.44679084,0.00019178,2]
[329026278,1718065834175,-500.0,0.00019178,2]
[329026280,1718065834187,-500.0,0.00019178,2]
[329026282,1718065834197,-392.47990492,0.00019178,2]
[329026284,1718065834208,-154.71998943,0.00019178,2]
[329026286,1718065834221,-406.18316688,0.00019178,2]
[329026288,1718065834236,-95.99685305,0.00019178,2]
[329026290,1718065834246,-503.37031197,0.00019178,2]
[329026292,1718065834256,-508.03898183,0.00019178,2]
[329026294,1718065834268,-500.0,0.00019178,2]
[329026296,1718065834278,-500.0,0.00019178,2]
[329026298,1718065834288,-500.0,0.00019178,2]
[329026300,1718065834298,-425.57724528,0.00019178,2]
[329026302,1718065834309,-500.0,0.00019178,2]
[329026304,1718065834319,-84.04717295,0.00019178,2]
[329026307,1718065834338,-415.95282705,0.00019178,2]
[329026309,1718065834349,-264.43761787,0.00019178,2]
[329026311,1718065834361,-235.56238213,0.00019178,2]
[329026313,1718065834372,-500.0,0.00019178,2]
[329026315,1718065834382,-500.0,0.00019178,2]
[329026317,1718065834393,-500.0,0.00019178,2]
[329026319,1718065834404,-516.04355064,0.00019178,2]
[329026321,1718065834416,-500.0,0.00019178,2]
[329026323,1718065834426,-500.0,0.00019178,2]
[329026325,1718065834436,-500.0,0.00019178,2]
[329026327,1718065834446,-500.0,0.00019178,2]
[329026329,1718065834456,-273.9946026,0.00019178,2]
[329026331,1718065834466,-506.13114056,0.00019178,2]
[329026333,1718065834476,-392.50943485,0.00019178,2]
[329026440,1718065839131,-107.49056515,0.00019178,2]
[329026442,1718065839142,-501.94891195,0.00019178,2]
[329026444,1718065839153,-412.61247868,0.00019178,2]
[329026446,1718065839165,-500.0,0.00019178,2]
[329026448,1718065839176,-500.0,0.00019178,2]
[329026450,1718065839187,-426.98995621,0.00019178,2]
[329026452,1718065839200,-73.01004379,0.00019178,2]
[329026454,1718065839211,-500.0,0.00019178,2]
[329026455,1718065839222,-500.0,0.00019178,2]
[329026457,1718065839233,-534.18658173,0.00019178,2]
[329026459,1718065839244,-500.0,0.00019178,2]
[329026461,1718065839255,-534.66479546,0.00019178,2]
[329026462,1718065839266,-504.14216852,0.00019178,2]
[329026463,1718065839277,-500.0,0.00019178,2]
[329026464,1718065839288,-500.0,0.00019178,2]
[329026465,1718065839299,-242.16327223,0.00019178,2]
[329026466,1718065839310,-500.0,0.00019178,2]
[329026467,1718065839320,-500.0,0.00019178,2]
[329026468,1718065839331,-500.0,0.00019178,2]
[329026469,1718065839342,-500.0,0.00019178,2]
[329026470,1718065839353,-500.0,0.00019178,2]
[329026471,1718065839364,-505.41905001,0.00019178,2]
[329026472,1718065839375,-500.0,0.00019178,2]
[329026473,1718065839385,-500.0,0.00019178,2]
[329026474,1718065839396,-500.0,0.00019178,2]
[329026475,1718065839406,-500.0,0.00019178,2]
[329026476,1718065839419,-502.43498286,0.00019178,2]
[329026477,1718065839429,-526.83267157,0.00019178,2]
[329026478,1718065839440,-500.0,0.00019178,2]
[329026479,1718065839451,-501.00053506,0.00019178,2]
[329026480,1718065839462,-500.0,0.00019178,2]
[329026481,1718065839473,-501.45406621,0.00019178,2]
[329026482,1718065839484,-152.32430789,0.00019178,2]
[329026483,1718065839496,-500.0,0.00019178,2]
[329026485,1718065839506,-330.50190332,0.00019178,2]
[329026487,1718065839520,-169.49809668,0.00019178,2]
[329026489,1718065839532,-500.0,0.00019178,2]
[329026491,1718065839543,-500.0,0.00019178,2]
[329026492,1718065839555,-126.60190332,0.00019178,2]
[329026493,1718065839576,-373.39809668,0.00019178,2]
[329026494,1718065839587,-509.12954843,0.00019178,2]
[329026495,1718065839598,-500.0,0.00019178,2]
[329026496,1718065839609,-500.0,0.00019178,2]
[329026497,1718065839621,-500.0,0.00019178,2]
[329026498,1718065839632,-500.0,0.00019178,2]
[329026499,1718065839643,-500.0,0.00019178,2]
[329026500,1718065839654,-500.0,0.00019178,2]
[329026501,1718065839667,-500.0,0.00019178,2]
[329026502,1718065839677,-500.0,0.00019178,2]
[329026503,1718065839688,-500.0,0.00019178,2]
[329026504,1718065839698,-500.0,0.00019178,2]
[329026505,1718065839708,-500.0,0.00019178,2]
[329026506,1718065839719,-500.0,0.00019178,2]
[329026507,1718065839731,-500.0,0.00019178,2]
[329026508,1718065839743,-500.0,0.00019178,2]
[329026509,1718065839756,-207.19361884,0.00019178,2]
[329026510,1718065839769,-500.0,0.00019178,2]
[329026511,1718065839780,-500.0,0.00019178,2]
[329026512,1718065839791,-500.0,0.00019178,2]
[329026513,1718065839802,-500.0,0.00019178,2]
[329026514,1718065839813,-500.0,0.00019178,2]
[329026515,1718065839824,-500.0,0.00019178,2]
[329026516,1718065839835,-500.0,0.00019178,2]
[329026517,1718065839847,-500.0,0.00019178,2]
[329026518,1718065839858,-500.0,0.00019178,2]
[329026519,1718065839869,-500.0,0.00019178,2]
[329026520,1718065839880,-500.0,0.00019178,2]
[329026521,1718065839892,-500.0,0.00019178,2]
[329026522,1718065839903,-500.0,0.00019178,2]
[329026524,1718065839915,-500.0,0.00019178,2]
[329026525,1718065839925,-500.0,0.00019178,2]
[329026526,1718065839936,-500.0,0.00019178,2]
[329026527,1718065839946,-500.0,0.00019178,2]
[329026528,1718065839960,-500.0,0.00019178,2]
[329026529,1718065839971,-500.0,0.00019178,2]
[329026530,1718065839982,-500.0,0.00019178,2]
[329026531,1718065839993,-537.93420019,0.00019178,2]
[329026532,1718065840003,-500.0,0.00019178,2]
[329026533,1718065840014,-500.0,0.00019178,2]
[329026534,1718065840029,-500.0,0.00019178,2]
[329026535,1718065840040,-500.0,0.00019178,2]
[329026536,1718065840052,-503.23950912,0.00019178,2]
[329026537,1718065840064,-500.0,0.00019178,2]
[329026538,1718065840075,-500.0,0.00019178,2]
[329026539,1718065840086,-500.0,0.00019178,2]
[329026540,1718065840097,-500.0,0.00019178,2]
[329026541,1718065840108,-500.0,0.00019178,2]
[329026542,1718065840119,-294.97355286,0.00019178,2]
[329026543,1718065840130,-500.0,0.00019178,2]
[329026544,1718065840142,-500.0,0.00019178,2]
[329026545,1718065840154,-500.0,0.00019178,2]
[329026546,1718065840165,-500.0,0.00019178,2]
[329026547,1718065840176,-500.0,0.00019178,2]
[329026548,1718065840187,-500.0,0.00019178,2]
[329026549,1718065840197,-500.0,0.00019178,2]
[329026550,1718065840208,-500.0,0.00019178,2]
[329026551,1718065840219,-500.0,0.00019178,2]
[329026552,1718065840230,-556.17008957,0.00019178,2]
[329026553,1718065840240,-500.0,0.00019178,2]
[329026554,1718065840252,-500.0,0.00019178,2]
[329026555,1718065840263,-500.0,0.00019178,2]
[329026556,1718065840274,-500.0,0.00019178,2]
[329026557,1718065840285,-500.0,0.00019178,2]
[329026558,1718065840295,-500.0,0.00019178,2]
[329026559,1718065840307,-500.0,0.00019178,2]
[329026560,1718065840318,-509.69066738,0.00019178,2]
[329026561,1718065840332,-500.0,0.00019178,2]
[329026562,1718065840344,-500.0,0.00019178,2]
[329026563,1718065840355,-623.35,0.00019178,2]
[329026564,1718065840367,-500.0,0.00019178,2]
[329026565,1718065840378,-500.0,0.00019178,2]
[329026566,1718065840390,-500.0,0.00019178,2]
[329026567,1718065840403,-500.0,0.00019178,2]
[329026568,1718065840417,-500.0,0.00019178,2]
[329026569,1718065840428,-500.0,0.00019178,2]
[329026570,1718065840439,-500.0,0.00019178,2]
[329026571,1718065840452,-500.0,0.00019178,2]
[329026572,1718065840465,-500.0,0.00019178,2]
[329026573,1718065840626,-500.0,0.00019178,2]
[329026574,1718065840637,-500.0,0.00019178,2]
[329026575,1718065840650,-500.0,0.00019178,2]
[329026576,1718065840664,-500.0,0.00019178,2]
[329026577,1718065840675,-500.0,0.00019178,2]
[329026578,1718065840686,-428.79543305,0.00019178,2]
[329026579,1718065840697,-500.0,0.00019178,2]
[329026580,1718065840711,-500.0,0.00019178,2]
[329026581,1718065840723,-500.0,0.00019178,2]
[329026582,1718065840738,-500.0,0.00019178,2]
[329026583,1718065840751,-504.40851952,0.00019178,2]
[329026584,1718065840763,-500.0,0.00019178,2]
[329026585,1718065840774,-500.0,0.00019178,2]
[329026586,1718065840785,-580.69,0.00019178,2]
[329026587,1718065840796,-500.0,0.00019178,2]
[329026588,1718065840807,-500.0,0.00019178,2]
[329026589,1718065840817,-500.0,0.00019178,2]
[329026590,1718065840829,-315.05862401,0.00019178,2]
[329026591,1718065840840,-500.0,0.00019178,2]
[329026592,1718065840852,-500.0,0.00019178,2]
[329026593,1718065840864,-500.0,0.00019178,2]
[329026594,1718065840874,-337.60368615,0.00019178,2]
[329026595,1718065840885,-500.0,0.00019178,2]
[329026596,1718065840895,-625.94,0.00019178,4]
[329026597,1718065840906,-674.04,0.00019178,2]
[329026598,1718065840919,-500.0,0.00019178,2]
[329026599,1718065840929,-500.0,0.00019178,2]
[329026600,1718065840939,-500.0,0.00019178,2]
[329026601,1718065840949,-500.0,0.00019178,2]
[329026602,1718065840960,-500.0,0.00019178,2]
[329026603,1718065840971,-2958.05,0.00019178,2]
[329026604,1718065840982,-500.0,0.00019178,2]
[329026605,1718065840994,-500.0,0.00019178,2]
[329026606,1718065841004,-500.0,0.00019178,2]
[329026607,1718065841016,-500.0,0.00019178,2]
[329026608,1718065841028,-500.0,0.00019178,2]
[329026609,1718065841040,-500.0,0.00019178,2]
[329026610,1718065841053,-961.39,0.00019178,2]
[329026611,1718065841064,-500.0,0.00019178,2]
[329026612,1718065841077,-1812.8,0.00019178,2]
[329026613,1718065841090,-500.0,0.00019178,2]
[329026614,1718065841102,-525.7100321,0.00019178,2]
[329026615,1718065841113,-500.0,0.00019178,2]
[329026616,1718065841128,-500.0,0.00019178,2]
[329026617,1718065841139,-504.63965132,0.00019178,2]
[329026618,1718065841149,-500.0,0.00019178,2]
[329026619,1718065841162,-1953.2,0.00019178,2]
[329026620,1718065841174,-500.0,0.00019178,2]
[329026621,1718065841184,-512.04680686,0.00019178,2]
[329026622,1718065841195,-500.0,0.00019178,2]
[329026623,1718065841205,-550.27,0.00019178,2]
[329026624,1718065841216,-500.0,0.00019178,2]
[329026625,1718065841226,-500.0,0.00019178,2]
[329026626,1718065841237,-505.23,0.00019178,2]
[329026627,1718065841248,-500.0,0.00019178,2]
[329026629,1718065841259,-500.0,0.00019178,2]
[329026631,1718065841269,-500.0,0.00019178,2]
[329026633,1718065841280,-500.0,0.00019178,2]
[329026635,1718065841291,-500.0,0.00019178,2]
[329026637,1718065841302,-500.0,0.00019178,2]
[329026639,1718065841313,-4219.49,0.00019178,2]
[329026641,1718065841324,-500.0,0.00019178,2]
[329026644,1718065841335,-500.0,0.00019178,2]
[329026646,1718065841346,-500.0,0.00019178,2]
[329026648,1718065841357,-500.0,0.00019178,2]
[329026650,1718065841367,-500.0,0.00019178,2]
[329026652,1718065841378,-500.0,0.00019178,2]
[329026654,1718065841389,-159.33465917,0.00019178,2]
[329026656,1718065841400,-1001.90146411,0.00019178,2]
[329026658,1718065841413,-503.94421677,0.00019178,2]
[329026660,1718065841423,-500.0,0.00019178,2]
[329026665,1718065841446,-1557.84,0.00019178,2]
[329026668,1718065841458,-508.30958498,0.00019178,2]
[329026672,1718065841470,-500.0,0.00019178,2]
[329026676,1718065841481,-500.0,0.00019178,2]
[329026679,1718065841493,-500.0,0.00019178,2]
[329026681,1718065841505,-500.0,0.00019178,2]
[329026684,1718065841516,-500.0,0.00019178,2]
[329026687,1718065841527,-500.0,0.00019178,2]
[329026690,1718065841538,-502.86779515,0.00019178,2]
[329026693,1718065841549,-500.0,0.00019178,2]
[329026696,1718065841560,-418.17558205,0.00019178,2]
[329026700,1718065841572,-500.0,0.00019178,2]
[329026703,1718065841583,-500.0,0.00019178,2]
[329026706,1718065841594,-500.0,0.00019178,2]
[329026708,1718065841605,-500.0,0.00019178,2]
[329026711,1718065841617,-500.0,0.00019178,2]
[329026714,1718065841627,-503.15078401,0.00019178,2]
[329026717,1718065841638,-1470.5,0.00019178,2]
[329026720,1718065841649,-500.0,0.00019178,2]
[329026723,1718065841661,-500.0,0.00019178,2]
[329026726,1718065841673,-528.23936182,0.00019178,2]
[329026729,1718065841684,-504.17341129,0.00019178,2]
[329026732,1718065841695,-415.14323387,0.00019178,2]
[329026735,1718065841706,-500.0,0.00019178,2]
[329026738,1718065841717,-155.9263854,0.00019178,2]
[329026740,1718065841728,-500.0,0.00019178,2]
[329026742,1718065841740,-500.0,0.00019178,2]
[329026744,1718065841751,-500.0,0.00019178,2]
[329026747,1718065841764,-500.0,0.00019178,2]
[329026750,1718065841776,-500.0,0.00019178,2]
[329026753,1718065841788,-500.0,0.00019178,2]
[329026756,1718065841799,-577.03,0.00019178,2]
[329026758,1718065841810,-510.72700278,0.00019178,2]
[329026760,1718065841821,-500.0,0.00019178,2]
[329026762,1718065841832,-505.09307229,0.00019178,2]
[329026764,1718065841843,-500.0,0.00019178,2]
[329026766,1718065841854,-500.0,0.00019178,2]
[329026768,1718065841865,-510.88,0.00019178,2]
[329026770,1718065841876,-314.89949198,0.00019178,2]
[329026773,1718065841887,-500.0,0.00019178,2]
[329026775,1718065841898,-500.0,0.00019178,2]
[329026777,1718065841909,-500.0,0.00019178,2]
[329026779,1718065841921,-500.0,0.00019178,2]
[329026781,1718065841932,-500.0,0.00019178,2]
[329026783,1718065841943,-500.0,0.00019178,2]
[329026784,1718065841954,-500.0,0.00019178,2]
[329026785,1718065841965,-500.0,0.00019178,2]
[329026786,1718065841975,-244.56921381,0.00019178,2]
[329026787,1718065841986,-452.81905366,0.00019178,2]
[329026788,1718065841997,-500.0,0.00019178,2]
[329026789,1718065842008,-500.0,0.00019178,2]
[329026790,1718065842025,-500.0,0.00019178,2]
[329026791,1718065842041,-500.0,0.00019178,2]
[329026792,1718065842053,-500.0,0.00019178,2]
[329026793,1718065842069,-500.0,0.00019178,2]
[329026794,1718065842081,-2328.12,0.00019178,2]
[329026795,1718065842094,-500.0,0.00019178,2]
[329026796,1718065842105,-500.0,0.00019178,2]
[329026797,1718065842117,-500.0,0.00019178,2]
[329026798,1718065842128,-500.0,0.00019178,2]
[329026799,1718065842143,-500.0,0.00019178,2]
[329026800,1718065842154,-500.0,0.00019178,2]
[329026801,1718065842167,-503.45689097,0.00019178,2]
[329026802,1718065842178,-500.0,0.00019178,2]
[329026803,1718065842189,-500.0,0.00019178,2]
[329026804,1718065842201,-619.50111981,0.00019178,2]
[329026805,1718065842213,-3386.78,0.00019178,2]
[329026806,1718065842225,-500.0,0.00019178,2]
[329026807,1718065842236,-500.0,0.00019178,2]
[329026808,1718065842247,-500.0,0.00019178,2]
[329026809,1718065842258,-500.0,0.00019178,2]
[329026810,1718065842270,-500.0,0.00019178,2]
[329026811,1718065842281,-500.0,0.00019178,2]
[329026812,1718065842293,-500.0,0.00019178,2]
[329026813,1718065842304,-500.0,0.00019178,2]
[329026814,1718065842316,-500.0,0.00019178,2]
[329026815,1718065842327,-500.0,0.00019178,2]
[329026816,1718065842339,-500.0,0.00019178,2]
[329026817,1718065842350,-500.0,0.00019178,2]
[329026818,1718065842361,-500.0,0.00019178,2]
[329026819,1718065842372,-500.0,0.00019178,2]
[329026820,1718065842383,-500.0,0.00019178,2]
[329026821,1718065842395,-1022.88,0.00019178,2]
[329026822,1718065842407,-500.0,0.00019178,2]
[329026823,1718065842420,-500.0,0.00019178,2]
[329026824,1718065842430,-500.0,0.00019178,2]
[329026825,1718065842441,-500.0,0.00019178,2]
[329026826,1718065842452,-500.0,0.00019178,2]
[329026827,1718065842464,-500.0,0.00019178,2]
[329026828,1718065842475,-521.73799642,0.00019178,2]
[329026829,1718065842487,-736.1,0.00019178,2]
[329026830,1718065842499,-461.82581473,0.00019178,2]
[329026831,1718065842510,-500.0,0.00019178,2]
[329026832,1718065842522,-500.0,0.00019178,2]
[329026833,1718065842535,-500.0,0.00019178,2]
[329026834,1718065842547,-500.0,0.00019178,2]
[329026835,1718065842559,-482.11184153,0.00019178,2]
[329026836,1718065842570,-511.00909559,0.00019178,2]
[329026837,1718065842583,-500.0,0.00019178,2]
[329026838,1718065842594,-500.0,0.00019178,2]
[329026839,1718065842606,-500.0,0.00019178,2]
[329026840,1718065842617,-614.52,0.00019178,2]
[329026841,1718065842629,-500.0,0.00019178,2]
[329026842,1718065842642,-500.0,0.00019178,2]
[329026843,1718065842653,-500.0,0.00019178,2]